[Event "Slovakia Open 2022"]
[Site "Bratislava"]
[Date "2022.09.30"]
[Round "1.27"]
[White "Vadila, Ondrej"]
[Black "Benci, Jozef"]
[Result "1-0"]
[ECO "A00"]
[WhiteElo "2178"]
[BlackElo "1873"]
[Annotator "TA"]
[PlyCount "97"]
[EventDate "2022.09.30"]
[EventCountry "SVK"]
[SourceTitle "playchess.com"]
[Source "ChessBase"]
[SourceQuality "1"]
[TimeControl "2700+10"]

{[%evp 9,97,-121,-129,-115,-70,-66,-13,-28,-12,-33,-5,-55,-30,-35,-27,-78,16,0,42,-6,78,71,147,139,138,126,225,218,306,141,142,160,231,111,319,198,196,133,132,141,152,155,152,61,59,-34,131,133,175,99,227,214,256,247,254,256,252,241,277,266,273,272,302,294,290,284,303,291,293,283,398,403,435,425,439,418,412,420,403,383,629,629,622,616,589,569,581,552,570,537]} 1. g4 {[%emt 0:00:06]} d5 {[%emt 0:00:17]} 2. Bg2 {[%emt 0:00:03]} c5 {[%emt 0:01:03]} 3. e3 {[%emt 0:00:04]} Nc6 {[%emt 0:00:03]} 4. b3 {[%emt 0:00:03]} e5 {[%emt 0:01:23]} 5. Bb2 {[%emt 0:00:07]} Be6 {[%emt 0:00:58] [#]} 6. Nc3 $146 {[%emt 0:00:04] A00: Irregular Openings.} ({Predecessor:} 6. h4 Qd7 7. g5 h6 8. d3 hxg5 9. hxg5 Rxh1 10. Bxh1 O-O-O 11. Qh5 g6 12. Qh7 {1-0 (40) Chiu,I (2245)-Batsiashvili,N (2472) Chess.com INT 2022}) 6... g6 {[%emt 0:00:58]} 7. Qe2 {[%emt 0:00:32]} a6 {[%emt 0:03:04]} (7... h5 $15 8. g5 Bg7) 8. O-O-O {[%emt 0:01:11] The position is equal.} Bg7 {[%emt 0:02:08]} 9. h4 {[%emt 0:06:37]} Nge7 {[%emt 0:03:27] With the idea ...d4.} 10. g5 {[%emt 0:01:10]} (10. h5 $11) 10... h5 {[%emt 0:01:48]} (10... d4 {looks sharper.} 11. Ne4 Nb4 12. Kb1 d3) 11. gxh6 $1 {[%emt 0:00:47]} Rxh6 {[%emt 0:00:21]} 12. Nh3 {[%emt 0:06:59] [#]} (12. Kb1 $11) 12... Qd7 {[%emt 0:05:09]} (12... d4 $1 $17 {Hoping for ...Bxh3.} 13. Ne4 Nb4) 13. Na4 {[%emt 0:00:59] And now Nb6 would win.} Qc7 {[%emt 0:07:00] Prevents Nb6.} (13... Rxh4 $2 14. Nb6 Qd8 15. Nxa8 $18) 14. Kb1 {[%emt 0:11:24]} (14. Ng5 $14 {should be considered.}) 14... Na7 {[%emt 0:05:48]} (14... Rxh4 15. Ng5 Bg4 16. Bf3 Rxh1 17. Rxh1 $14) (14... Bf5 $1 $11 {keeps the balance.}) 15. Nf4 {[%emt 0:01:38]} exf4 {[%emt 0:07:52]} (15... b5 $142) 16. Bxg7 $16 {[%emt 0:00:05]} Rh7 {[%emt 0:00:17]} 17. Bf6 {[%emt 0:00:30]} fxe3 {[%emt 0:03:42]} (17... Nb5 $16 {was worth a try.}) 18. Qxe3 $18 {[%emt 0:01:02]} (18. dxe3 $6 Nb5 $16) 18... d4 {[%emt 0:00:59]} (18... c4 $142 19. Rde1 cxb3 20. Qxb3 (20. axb3 Rc8 $16) 20... Nac8) 19. Qe5 {[%emt 0:00:11]} (19. Qg3 $18 {and White stays clearly on top.} Nb5 20. h5 Qxg3 21. fxg3) 19... Qxe5 $16 {[%emt 0:00:53]} 20. Bxe5 {[%emt 0:00:03] This bishop pair is nice.} Rh5 {[%emt 0:00:37]} (20... Nac6 $16) 21. Bd6 {[%emt 0:00:18]} (21. Bxb7 $18 Bd5 22. Bxd5 (22. Bxa8 Bxh1 23. Rxh1 Rxe5 $18) 22... Nxd5 23. Rhe1) 21... Nf5 $2 {[%emt 0:00:28]} (21... Rd8 $16) 22. Bxc5 {[%emt 0:00:40]} Nc6 {[%emt 0:00:23]} 23. Rde1 {[%emt 0:00:12]} ({Better is} 23. Nb6 $18 Rb8 24. Bf3) 23... O-O-O {[%emt 0:00:09]} 24. Bb6 {[%emt 0:00:26]} Rdh8 {[%emt 0:00:10]} 25. Nc5 {[%emt 0:00:06]} Nxh4 {[%emt 0:00:12] [#]} 26. Bxc6 {[%emt 0:07:27] White is more active.} (26. Nxe6 $2 Nxg2 27. Rxh5 Rxh5 $17) (26. Be4 $1 $16) 26... bxc6 $14 {[%emt 0:00:04]} 27. Nxe6 {[%emt 0:00:03]} (27. Re2 $14) 27... fxe6 $2 {[%emt 0:00:16]} (27... Nf3 $1 $15 {stays ahead.} 28. Rxh5 (28. Nxd4 Rxh1 29. Nxf3 Rxe1+ 30. Nxe1 Rh1 $17) 28... gxh5) 28. Bxd4 $16 {[%emt 0:00:16]} Re8 {[%emt 0:00:10]} 29. Re5 {[%emt 0:02:46]} (29. Bc3 $18) 29... Rxe5 {[%emt 0:00:09]} (29... Nf5 $16 30. Rxh5 gxh5) 30. Bxe5 {[%emt 0:00:02][%mdl 4096] Endgame KRB-KRN} Nf3 {[%emt 0:00:10]} 31. Bf4 {[%emt 0:00:02]} e5 {[%emt 0:00:08]} 32. Be3 {[%emt 0:00:02]} Rd8 {[%emt 0:00:06]} 33. d3 {[%emt 0:00:13]} Kc7 {[%emt 0:00:10]} 34. Rh7+ {[%emt 0:01:16]} Rd7 {[%emt 0:00:04]} 35. Rh8 {[%emt 0:00:15]} Nd4 {[%emt 0:00:17]} 36. Rg8 {[%emt 0:00:13]} Rd6 {[%emt 0:00:10]} 37. Rg7+ {[%emt 0:00:05]} Kd8 {[%emt 0:00:13]} 38. Bg5+ {[%emt 0:00:21]} Kc8 {[%emt 0:00:09]} 39. Ra7 {[%emt 0:00:15]} Rd7 {[%emt 0:00:13]} (39... Ne6 $142) 40. Rxa6 $18 {[%emt 0:00:14]} Kb7 {[%emt 0:00:05]} 41. Ra5 {[%emt 0:00:10]} Nb5 {[%emt 0:00:15]} 42. a4 {[%emt 0:00:03]} Nc3+ {[%emt 0:00:11]} 43. Kc1 {[%emt 0:01:10]} Nd5 {[%emt 0:00:10]} 44. Be3 {[%emt 0:00:47]} Nb6 $2 {[%emt 0:00:10]} (44... Nxe3 45. fxe3 Re7) 45. Bxb6 {[%emt 0:00:10] White is clearly winning.} Kxb6 {[%emt 0:00:01]} 46. Rxe5 {[%emt 0:00:02]} Rf7 {[%emt 0:00:05]} 47. Re2 {[%emt 0:00:03]} Kc5 {[%emt 0:00:08]} 48. Kd2 {[%emt 0:00:03]} Kd5 {[%emt 0:00:16]} 49. c3 {[%emt 0:00:05] Weighted Error Value: White=0.29 (precise) /Black=0.49} 1-0

[Event "Slovakia Open 2022"]
[Site "Bratislava"]
[Date "2022.09.30"]
[Round "1.28"]
[White "Hlavac, Tomas"]
[Black "Stevik, Patrik"]
[Result "0-1"]
[ECO "C23"]
[WhiteElo "1554"]
[BlackElo "2148"]
[Annotator "TA"]
[PlyCount "62"]
[EventDate "2022.09.30"]
[EventCountry "SVK"]
[SourceTitle "playchess.com"]
[Source "ChessBase"]
[SourceQuality "1"]
[TimeControl "2700+10"]

{[%evp 9,62,0,-2,-16,-6,-42,-2,-55,-52,-56,-37,-167,-153,-163,-68,-144,-81,-221,-221,-213,-195,-191,-210,-206,-179,-197,-76,-131,-119,-208,-197,-209,-214,-236,-196,-195,-99,-96,-86,-85,-79,-82,-92,-171,-62,-75,0,0,278,-730,-719,-4175,-3172,-29991,-29992]} 1. e4 {[%emt 0:00:04]} e5 {[%emt 0:00:26]} 2. Nf3 {[%emt 0:00:04]} c6 {[%emt 0:00:04]} 3. Bc4 {[%emt 0:00:28]} d5 {[%emt 0:00:13]} 4. exd5 {[%emt 0:00:29]} cxd5 {[%emt 0:00:02]} 5. Bb3 {[%emt 0:00:19]} e4 {[%emt 0:00:05]} 6. Nd4 {[%emt 0:00:27] C23: Bishop's Opening: 2...Bc5.} Bc5 {[%emt 0:01:04]} 7. c3 {[%emt 0:01:39] [#]} Nc6 $146 {[%emt 0:01:14] Threatening ...Ne5.} ({Predecessor:} 7... Bxd4 8. cxd4 Nc6 9. Nc3 Nf6 10. Ne2 O-O 11. O-O Bg4 12. d3 Nxd4 13. Re1 Nxe2+ 14. Rxe2 Bxe2 15. Qxe2 exd3 16. Qxd3 {0-1 (46) Payet,D (1450)-Mablouke,U (1680) Reunion 2004}) 8. Nxc6 {[%emt 0:01:31]} (8. d3 $11) 8... bxc6 $15 {[%emt 0:00:04]} 9. d4 {[%emt 0:01:08]} Bd6 {[%emt 0:00:35]} (9... exd3 $5 10. Qxd3 Ne7 $15) 10. Qe2 {[%emt 0:01:58]} (10. c4 $15) 10... a5 $1 $19 {[%emt 0:00:58]} 11. Ba4 {[%emt 0:00:41]} Qb6 {[%emt 0:00:49]} (11... Ne7 $19 {And now ...Ba6 would win.} 12. c4 O-O) 12. b3 {[%emt 0:03:17]} ({Better is} 12. c4 $15 Bb4+ 13. Nc3) 12... Nf6 {[%emt 0:00:25]} (12... Ne7 $142 {Hoping for ...0-0.} 13. O-O O-O) 13. h3 {[%emt 0:00:32]} (13. O-O $17 {keeps fighting.}) 13... Ba6 {[%emt 0:00:14]} 14. Qe3 {[%emt 0:04:17]} O-O {[%emt 0:00:21] Threatens to win with ...c5.} 15. Ba3 {[%emt 0:01:17] Prevents c5.} Bxa3 {[%emt 0:01:18]} 16. Nxa3 {[%emt 0:00:04]} Rac8 {[%emt 0:00:12]} 17. Rb1 {[%emt 0:01:09]} Bb5 {[%emt 0:03:13]} (17... Bd3 $19 18. Rc1 Qd8) 18. Bxb5 {[%emt 0:10:06]} (18. c4 $142 Ba6 19. O-O) 18... cxb5 $17 {[%emt 0:00:13][%cal Bc6b5,Bb5b4,Bb4b3][%mdl 32]} 19. c4 {[%emt 0:01:31]} (19. b4 $17) 19... dxc4 $19 {[%emt 0:00:51]} 20. bxc4 {[%emt 0:00:07]} b4 {[%emt 0:00:03]} 21. c5 {[%emt 0:00:02]} Qe6 {[%emt 0:00:09]} 22. Nb5 {[%emt 0:00:28]} Nd5 {[%emt 0:01:47]} ({Black should try} 22... Qxa2 $19 23. O-O Qe6) 23. Qb3 $17 {[%emt 0:01:06]} Rb8 $1 {[%emt 0:00:53] Black is more active.} 24. Nd6 {[%emt 0:00:41] [#]} a4 $1 {[%emt 0:00:19]} 25. Qc4 {[%emt 0:02:17] [#]} ({But not} 25. Qxa4 Nc3 26. Qc2 Nxb1 27. Qxb1 b3 28. axb3 Rxb3 $19) 25... b3 $1 $36 {[%emt 0:01:32][%mdl 2048] Black is on the roll.} 26. a3 {[%emt 0:01:04]} ({Not} 26. Qxa4 $2 Nc3 27. Qxb3 Rxb3 28. Rxb3 Nxa2 $19) (26. axb3 $17 {was worth a try.} Rb4 27. Qc2) 26... e3 {[%emt 0:02:32]} (26... Nf4 $19 {White must now prevent ...Qf6.} 27. Qxe6 Nxe6) 27. O-O $15 {[%emt 0:01:01]} exf2+ {[%emt 0:00:19]} ({Don't play} 27... e2 28. Rfe1 $11) (27... h5 $17) 28. Rxf2 $11 {[%emt 0:00:50]} Qg6 $2 {[%emt 0:00:09][%mdl 8192]} (28... h6 $11) 29. Rbf1 $4 {[%emt 0:02:49][%mdl 8192]} (29. Nf5 $18 Rfd8 30. Qxa4) 29... Ne3 $1 $19 {[%emt 0:00:30][%csl LRc4,LRf1]} 30. Nxf7 {[%emt 0:03:17]} Nxc4 {[%emt 0:01:25]} 31. Nh6+ {[%emt 0:00:53]} gxh6 {[%emt 0:00:10] Weighted Error Value: White=0.89/Black=0.41} 0-1

[Event "Slovakia Open 2022"]
[Site "Bratislava"]
[Date "2022.09.30"]
[Round "1.29"]
[White "Lecky, Juraj"]
[Black "Rehacek, Oldrich"]
[Result "1-0"]
[ECO "B00"]
[WhiteElo "2070"]
[BlackElo "1366"]
[Annotator "TA"]
[PlyCount "43"]
[EventDate "2022.09.30"]
[EventCountry "SVK"]
[SourceTitle "playchess.com"]
[Source "ChessBase"]
[SourceQuality "1"]
[TimeControl "2700+10"]

{[%evp 9,43,34,33,34,52,0,0,-84,-90,-98,0,-18,-3,-13,0,4,0,0,53,62,52,53,47,0,572,583,576,368,342,322,1785,1765,29989,29990,29990,957]} 1. d4 {[%emt 0:00:04]} b6 {[%emt 0:00:01]} 2. e4 {[%emt 0:00:09]} Bb7 {[%emt 0:00:02]} 3. Bd3 {[%emt 0:00:02]} Nf6 {[%emt 0:00:03]} 4. Nc3 {[%emt 0:00:30]} e6 {[%emt 0:00:02]} 5. Nf3 {[%emt 0:00:29][%cal Bg1f3,Bf3d2,Bd2e4][%mdl 32]} Bb4 {[%emt 0:00:04]} 6. Nd2 {[%emt 0:00:07] B00: Queen's Fianchetto Defence, Nimzowitsch Defence.} c5 {[%emt 0:01:40]} 7. Nb5 {[%emt 0:05:33]} (7. dxc5 $14 Nc6 8. cxb6) 7... cxd4 $11 {[%emt 0:01:22] [#]} 8. c3 $146 {[%emt 0:01:45]} (8. e5 $11 {keeps the balance.} Nd5 9. a3) ({Predecessor:} 8. O-O a6 9. e5 axb5 10. exf6 Qxf6 11. Nf3 Bxf3 12. Qxf3 Qxf3 13. gxf3 Nc6 14. Bxb5 {0-1 (83) Hammermeister,U-Meya,C Dortmund 1999}) 8... dxc3 $17 {[%emt 0:01:29]} 9. bxc3 {[%emt 0:00:06]} Be7 {[%emt 0:00:27]} (9... Bf8 $17 {Threatening ...a6.} 10. O-O a6) 10. e5 $11 {[%emt 0:00:51]} Nd5 {[%emt 0:01:03]} 11. Ne4 $1 {[%emt 0:00:04]} O-O {[%emt 0:02:53]} 12. Qh5 $1 {[%emt 0:00:40][%cal Oe4f6] [#] aiming for Nf6+!} g6 {[%emt 0:06:31]} 13. Qh6 $40 {[%emt 0:00:54][%mdl 128] Threatens to win with h4. White is up to no good.} f5 {[%emt 0:00:56]} (13... Nc6 $11 14. Ng5 Bxg5 15. Bxg5 Qb8) 14. Ng5 $1 $14 {[%emt 0:05:30]} Bxg5 {[%emt 0:00:54]} 15. Bxg5 {[%emt 0:00:01]} Qc8 {[%emt 0:02:37] [#] Strongly threatening ...a6.} 16. Rc1 {[%emt 0:02:18]} (16. c4 $14 {is more appropriate.} Nb4 17. Be2 Bxg2 18. Bf6 Rxf6 19. exf6) 16... Na6 $2 {[%emt 0:07:30][%mdl 8192]} (16... Nc6 $11 {and Black is okay.} 17. Nd6 Qc7) 17. Nd6 $18 {[%emt 0:01:37]} Qc6 {[%emt 0:00:38]} 18. h4 {[%emt 0:00:52][%cal Bh2h4,Bh4h5,Bh5g6][%mdl 32]} Nc5 {[%emt 0:02:12]} 19. Bb5 {[%emt 0:00:42] The board is on fire. This bishop pair is nice.} Qc7 {[%emt 0:01:20]} (19... Qxb5 20. Nxb5 Nd3+ 21. Ke2 Nxe5) 20. h5 {[%emt 0:00:10]} Ne4 {[%emt 0:05:04]} 21. hxg6 {[%emt 0:04:03][%csl Gg6,Gh1][%cal Rh6h7]} Nxg5 {[%emt 0:01:16]} 22. Qxg5 {[%emt 0:01:23] Weighted Error Value: White=0.36/Black=0.88} (22. Rh5 $142 Qxd6 23. exd6 Rf6 24. Rxg5 Rxg6 25. Rxg6+ hxg6 26. Qxg6+ Kf8 27. Kd2) 1-0

[Event "Slovakia Open 2022"]
[Site "Bratislava"]
[Date "2022.09.30"]
[Round "1.30"]
[White "Nosal, Tobias"]
[Black "Chlpek, Daniel"]
[Result "0-1"]
[ECO "E06"]
[WhiteElo "1601"]
[BlackElo "2020"]
[Annotator "TA"]
[PlyCount "82"]
[EventDate "2022.09.30"]
[EventCountry "SVK"]
[SourceTitle "playchess.com"]
[Source "ChessBase"]
[SourceQuality "1"]
[TimeControl "2700+10"]

{[%evp 14,82,23,19,19,9,14,-10,-12,-75,-36,-56,-27,-51,-39,-136,-133,-121,-118,-185,-206,-200,-189,-216,-209,-224,-199,-251,-121,-120,-42,-61,0,0,0,-53,-55,-63,-68,-341,-336,-299,-330,-332,-335,-439,-457,-450,-435,-426,-403,-387,-341,-391,-375,-463,-383,-760,-485,-1147,-1091,-4927,-4927,-4918,-4910,-29984,-29985,-29985,-29986,-29985,-29983]} 1. d4 {[%emt 0:00:04]} Nf6 {[%emt 0:00:04]} 2. c4 {[%emt 0:00:02]} e6 {[%emt 0:00:13]} 3. g3 {[%emt 0:00:03]} d5 {[%emt 0:00:13]} 4. Bg2 {[%emt 0:00:04]} Be7 {[%emt 0:00:09]} 5. Nf3 {[%emt 0:00:03]} O-O {[%emt 0:00:04]} 6. O-O {[%emt 0:00:05]} a5 {[%emt 0:00:04]} 7. Qc2 {[%emt 0:01:37]} c6 {[%emt 0:00:03]} 8. Nbd2 {[%emt 0:03:07]} b6 {[%emt 0:00:01] E06: Closed Catalan: Early deviations.} 9. e4 {[%emt 0:03:38]} Bb7 {[%emt 0:00:02] [#]} 10. cxd5 $146 {[%emt 0:02:25]} ({Predecessor:} 10. Rd1 Na6 11. e5 Nd7 12. cxd5 Nb4 13. Qb1 cxd5 14. Nf1 Ba6 15. Ne3 Rc8 16. a3 {½-½ (35) Wojtaszek,R (2691)-Carlsen,M (2847) Krasnaya Polyana 2021}) 10... cxd5 {[%emt 0:00:17] The position is equal.} 11. exd5 {[%emt 0:01:16]} (11. e5 $11 Nfd7 12. Nb1) 11... Nxd5 {[%emt 0:00:12]} 12. a3 {[%emt 0:01:08]} Nc6 {[%emt 0:00:03]} 13. Nc4 {[%emt 0:02:26]} Rc8 {[%emt 0:00:19]} 14. Qd2 {[%emt 0:04:03] [#]} (14. Qb3 $15) 14... Ba6 $1 $17 {[%emt 0:00:08]} 15. b3 {[%emt 0:01:05]} a4 {[%emt 0:00:15]} 16. Rd1 {[%emt 0:03:19]} (16. Bb2 $17 {is a better defense.}) 16... axb3 $19 {[%emt 0:00:04]} 17. Ne3 {[%emt 0:01:51]} Na5 {[%emt 0:00:05]} 18. Nxd5 {[%emt 0:08:28]} exd5 {[%emt 0:00:01]} 19. Rb1 {[%emt 0:01:44]} Re8 {[%emt 0:01:45] Strongly threatening ...Rc2.} 20. Ne5 {[%emt 0:00:57]} (20. Bf1 {was called for.} Rc2 21. Qf4 Bxf1 22. Rxf1) 20... Nc4 {[%emt 0:06:23]} (20... Rc2 $19 {and Black stays clearly on top.} 21. Qe3 f6) 21. Qf4 {[%emt 0:02:03]} f6 {[%emt 0:00:34]} ({Black should play} 21... Nxe5 $17 22. dxe5 Bc4) 22. Nd3 $15 {[%emt 0:01:37]} b2 {[%emt 0:05:19] Black is more active.} (22... Bxa3 $15 23. Rxb3 Bxc1 24. Nxc1 Na5) 23. Bxb2 $11 {[%emt 0:02:14]} Nxb2 {[%emt 0:01:07]} 24. Rxb2 {[%emt 0:01:20]} (24. Nxb2 $11 Bxa3 25. Qf3 Bxb2 26. Qxd5+ Qxd5 27. Bxd5+ Kf8 28. Rxb2) 24... Bxa3 $15 {[%emt 0:03:57]} 25. Ra2 {[%emt 0:00:44]} Rc3 $36 {[%emt 0:01:42][%mdl 2048] Black is more active.} 26. Nb4 {[%emt 0:01:41][%mdl 8192] Now White is beyond hope.} (26. Bf1 $15) 26... Bc4 $19 {[%emt 0:00:18][%cal Ba6c4,Bc4d3,Bd3e4][%mdl 32]} ({Less strong is} 26... Bxb4 27. Rxa6 Rc6 28. Qf3 $14) 27. Rxa3 {[%emt 0:02:08]} Rxa3 {[%emt 0:00:09]} 28. Nc2 {[%emt 0:00:16]} Rd3 {[%emt 0:01:05]} 29. Rxd3 {[%emt 0:00:13]} Bxd3 {[%emt 0:00:04]} 30. Ne3 {[%emt 0:00:10]} Be4 {[%emt 0:00:23]} 31. Qg4 {[%emt 0:00:16]} Qc8 {[%emt 0:01:24]} 32. Qd1 {[%emt 0:00:09]} Qc3 {[%emt 0:00:18]} 33. h4 {[%emt 0:00:11]} b5 {[%emt 0:01:19][%cal Bb6b5,Bb5b4,Bb4b3,Bb3c2][%mdl 32] Prevents Qa4.} 34. h5 {[%emt 0:00:11]} h6 {[%emt 0:00:14] ...Bxg2 is the strong threat.} 35. Kh2 {[%emt 0:00:09]} (35. Nxd5 Qd3 36. Qg4 Bxg2 37. Kxg2 Qe4+ 38. Qxe4 Rxe4 39. Nc3 Rxd4 40. Nxb5) 35... b4 {[%emt 0:00:03] White must now prevent ...Bxg2.} 36. Bxe4 {[%emt 0:00:08]} (36. Qa4 $142 Rf8 37. Nxd5 Bxd5 38. Bxd5+ Kh8 39. Kg2) 36... Rxe4 {[%emt 0:00:20] KQR-KQN} 37. Kg2 {[%emt 0:00:13]} b3 {[%emt 0:00:31] ( -> ...Rxe3)} 38. Nxd5 {[%emt 0:00:10]} Qc4 {[%emt 0:01:33]} 39. Ne3 {[%emt 0:00:04] [#]} Rxe3 $1 {[%emt 0:00:01][%mdl 512] Black mates.} 40. fxe3 {[%emt 0:00:05]} Qc2+ {[%emt 0:00:01]} 41. Qxc2 {[%emt 0:00:12]} bxc2 {[%emt 0:00:01] Weighted Error Value: White=0.97/Black=0.31} 0-1

[Event "Slovakia Open 2022"]
[Site "Bratislava"]
[Date "2022.09.30"]
[Round "1.31"]
[White "Zetocha, Adrian"]
[Black "Shykhnenko, Hryhorii"]
[Result "1-0"]
[ECO "A59"]
[WhiteElo "2205"]
[BlackElo "1317"]
[Annotator "TA"]
[PlyCount "51"]
[EventDate "2022.09.30"]
[EventCountry "SVK"]
[SourceTitle "playchess.com"]
[Source "ChessBase"]
[SourceQuality "1"]
[TimeControl "2700+10"]

{[%evp 16,51,73,58,78,73,77,83,91,83,104,109,138,145,163,122,130,130,130,130,130,130,130,130,130,131,140,98,292,247,340,335,355,339,311,318,475,450]} 1. d4 {[%emt 0:01:03]} Nf6 {[%emt 0:00:02]} 2. c4 {[%emt 0:00:07]} c5 {[%emt 0:00:02]} 3. d5 {[%emt 0:00:17]} b5 {[%emt 0:00:02]} 4. cxb5 {[%emt 0:00:19]} a6 {[%emt 0:00:02]} 5. bxa6 {[%emt 0:00:07]} g6 {[%emt 0:00:07]} 6. Nc3 {[%emt 0:00:11]} Bxa6 {[%emt 0:00:02]} 7. e4 {[%emt 0:01:17]} Bxf1 {[%emt 0:00:03]} 8. Kxf1 {[%emt 0:00:03]} d6 {[%emt 0:00:25]} 9. Nf3 {[%emt 0:01:19]} Nbd7 {[%emt 0:00:53] A59: Benko/Volga Gambit: White castles by hand.} 10. g3 {[%emt 0:00:21]} Bg7 {[%emt 0:00:25]} 11. Kg2 {[%emt 0:00:07]} Qa5 {[%emt 0:00:47] White is better.} 12. Bd2 {[%emt 0:01:31] [#]} Ng4 $146 {[%emt 0:01:17]} ({Predecessor:} 12... O-O 13. Qc2 Rfb8 14. Rhe1 Ng4 15. a4 Qb4 16. Nd1 Qb3 17. Qxb3 Rxb3 18. Bc3 Nge5 {½-½ (31) Ftacnik,L (2541)-Martinez Duany,L (2510) Porto 2016}) 13. a4 {[%emt 0:01:34]} Nge5 {[%emt 0:03:03]} 14. Nb5 {[%emt 0:01:30]} Qb6 {[%emt 0:00:10]} 15. Nxe5 {[%emt 0:01:35]} Nxe5 {[%emt 0:00:31]} 16. Bc3 {[%emt 0:03:05] [#] aiming for f4.} O-O {[%emt 0:02:11]} 17. b3 {[%emt 0:02:35][%cal Bb2b3,Bb3b4,Bb4b5][%mdl 32]} Nd7 {[%emt 0:03:01]} 18. Bxg7 {[%emt 0:04:15]} Kxg7 {[%emt 0:00:02]} 19. Qe2 {[%emt 0:01:23]} Rfc8 {[%emt 0:03:06]} 20. Rhb1 {[%emt 0:00:48] White is more active.} Kf8 {[%emt 0:05:17]} 21. b4 {[%emt 0:02:00]} c4 $2 {[%emt 0:02:08] [#] Black cannot hold the game after this.} (21... Qa6 $16 22. h3 Kg8) 22. Nc3 {[%emt 0:02:36]} Ne5 {[%emt 0:01:33]} 23. a5 {[%emt 0:00:10]} Qc7 {[%emt 0:00:27]} 24. Nb5 {[%emt 0:01:01]} Qb7 {[%emt 0:00:27]} 25. Nd4 {[%emt 0:00:09]} Nd3 {[%emt 0:01:27]} (25... Qa7 {is a better defense.}) 26. b5 {[%emt 0:00:19] Weighted Error Value: White=0.09 (flawless) /Black=0.38} 1-0

[Event "Slovakia Open 2022"]
[Site "Bratislava"]
[Date "2022.09.30"]
[Round "1.32"]
[White "Kluckova, Alzbeta"]
[Black "Panko, Radoslav"]
[Result "0-1"]
[ECO "B06"]
[WhiteElo "1097"]
[BlackElo "1996"]
[Annotator "TA"]
[PlyCount "54"]
[EventDate "2022.09.30"]
[EventCountry "SVK"]
[SourceTitle "playchess.com"]
[Source "ChessBase"]
[SourceQuality "1"]
[TimeControl "2700+10"]

{[%evp 9,54,32,75,-37,-49,-60,-57,-112,-118,-114,-116,-193,-179,-224,-218,-216,-229,-300,-296,-378,-375,-381,-379,-381,-382,-375,-378,-379,-370,-385,-372,-391,-391,-427,-421,-420,-414,-507,-600,-598,-594,-578,-554,-744,-744,-1031,-1045]} 1. e4 {[%emt 0:00:08]} g6 {[%emt 0:00:13]} 2. Nf3 {[%emt 0:00:08]} Bg7 {[%emt 0:00:04]} 3. d4 {[%emt 0:00:25]} c6 {[%emt 0:00:05]} 4. c3 {[%emt 0:01:22]} d6 {[%emt 0:00:16][%cal Bd7d6,Bd6e5,Be5d4][%mdl 32]} 5. Be2 {[%emt 0:00:41]} Bg4 {[%emt 0:00:34] [#]} 6. e5 $146 {[%emt 0:00:35] B06: Modern Defence.} ({Better is} 6. Be3 $16) ({Predecessor:} 6. Be3 Nf6 7. Nfd2 Bxe2 8. Qxe2 Nbd7 9. f4 O-O 10. Na3 c5 11. O-O cxd4 12. cxd4 Qa5 {½-½ (80) Djordjevic,V (2432)-Freeman,G (2119) Novi Sad 2016}) 6... Bxf3 $15 {[%emt 0:00:14]} 7. Bxf3 {[%emt 0:00:03]} dxe5 {[%emt 0:00:07]} 8. O-O {[%emt 0:00:03]} (8. Qb3 $15) 8... exd4 $17 {[%emt 0:00:09]} 9. Qb3 {[%emt 0:06:11]} Qb6 {[%emt 0:00:10]} 10. Bd2 {[%emt 0:00:10]} (10. cxd4 $17 Bxd4 11. Na3) 10... Nd7 $19 {[%emt 0:00:43][%cal Bb8d7,Bd7c5,Bc5e4,Be4d2][%mdl 32]} 11. Na3 {[%emt 0:00:37]} Qxb3 {[%emt 0:01:25]} 12. axb3 {[%emt 0:00:07]} Nc5 {[%emt 0:00:19]} 13. Bd1 {[%emt 0:00:50]} Ne4 {[%emt 0:00:46][%csl LRc3,LRd2]} 14. Nb1 {[%emt 0:06:20]} Nxd2 {[%emt 0:00:11]} 15. Nxd2 {[%emt 0:03:00]} dxc3 {[%emt 0:00:09]} 16. bxc3 {[%emt 0:00:05]} Bxc3 {[%emt 0:00:08]} 17. Ra2 {[%emt 0:00:04]} Bxd2 {[%emt 0:00:24]} ({Don't blunder} 17... Nf6 $2 18. Bf3 $19) 18. Rxd2 {[%emt 0:00:18]} Rd8 {[%emt 0:00:10]} 19. Rxd8+ {[%emt 0:00:10]} Kxd8 {[%emt 0:00:05][%mdl 4096] Endgame KRB-KRN} 20. Bf3 {[%emt 0:01:16]} Nf6 {[%emt 0:00:09]} 21. Rd1+ {[%emt 0:00:18]} Kc7 {[%emt 0:00:05]} 22. Kf1 {[%emt 0:00:02]} Rd8 {[%emt 0:00:04] [#] White must now prevent ...Rxd1+.} 23. Rxd8 {[%emt 0:00:16]} Kxd8 {[%emt 0:00:11] Black is clearly winning.} 24. Ke2 {[%emt 0:00:10]} Kd7 {[%emt 0:00:05]} 25. Kd3 {[%emt 0:00:06]} Kd6 {[%emt 0:00:03]} 26. b4 {[%emt 0:00:08]} b5 {[%emt 0:00:23]} 27. Kd4 {[%emt 0:00:26]} Nd5 {[%emt 0:00:11] White got outplayed after the opening.  Weighted Error Value: White=0.66/Black=0.02 (flawless)} 0-1